[Event "Early-Titled-Tuesday-Blitz-May-07-2024"]
[Site "Chess.com"]
[Date "2024.05.07"]
[Round "1"]
[White "HSH1987"]
[Black "andrzej"]
[Result "1-0"]
[WhiteElo "2800"]
[BlackElo "2447"]
[TimeControl "180+1"]
[EndTime "8:06:22 PDT"]
[Termination "HSH1987 won by resignation"]

1. Nf3 {[%clk 0:03:00.9]} 1... d5 {[%clk 0:02:59.6]} 2. g3 {[%clk 0:03:00.8]}
2... c5 {[%clk 0:03:00.1]} 3. Bg2 {[%clk 0:03:01.7]} 3... Nc6 {[%clk 0:03:00.7]}
4. O-O {[%clk 0:02:59.9]} 4... e5 {[%clk 0:03:00.7]} 5. d3 {[%clk 0:02:59.8]}
5... Be7 {[%clk 0:03:00.9]} 6. e4 {[%clk 0:02:59.9]} 6... d4 {[%clk 0:03:01.2]}
7. a4 {[%clk 0:02:59.7]} 7... h5 {[%clk 0:03:00.4]} 8. h4 {[%clk 0:02:59.2]}
8... Nf6 {[%clk 0:02:53.5]} 9. Na3 {[%clk 0:02:58.8]} 9... Ng4 {[%clk
0:02:53.1]} 10. Nc4 {[%clk 0:02:58.3]} 10... f6 {[%clk 0:02:48.3]} 11. Nh2
{[%clk 0:02:57.2]} 11... Be6 {[%clk 0:02:45]} 12. Nxg4 {[%clk 0:02:56.7]} 12...
hxg4 {[%clk 0:02:44.9]} 13. f3 {[%clk 0:02:55.4]} 13... gxf3 {[%clk 0:02:42.8]}
14. Bxf3 {[%clk 0:02:56.3]} 14... g6 {[%clk 0:02:36.1]} 15. Bg4 {[%clk
0:02:55.9]} 15... Qd7 {[%clk 0:02:33.7]} 16. Bxe6 {[%clk 0:02:52.6]} 16... Qxe6
{[%clk 0:02:34.6]} 17. Qf3 {[%clk 0:02:51.9]} 17... Nb4 {[%clk 0:02:18.5]} 18.
Rf2 {[%clk 0:02:49.7]} 18... O-O-O {[%clk 0:02:04.3]} 19. Bd2 {[%clk 0:02:40.2]}
19... Nxc2 {[%clk 0:01:59]} 20. Rc1 {[%clk 0:02:39.5]} 20... Ne3 {[%clk
0:01:53.1]} 21. Bxe3 {[%clk 0:02:36.6]} 21... dxe3 {[%clk 0:01:53.3]} 22. Nxe3
{[%clk 0:02:36.7]} 22... Rxd3 {[%clk 0:01:45.6]} 23. Qe2 {[%clk 0:02:35.4]}
23... Rd4 {[%clk 0:01:39.9]} 24. Nd5 {[%clk 0:02:33.8]} 24... Kb8 {[%clk
0:01:34.2]} 25. b3 {[%clk 0:02:31.4]} 25... Bd8 {[%clk 0:01:27.7]} 26. Rxc5
{[%clk 0:02:22.2]} 26... Bb6 {[%clk 0:01:23.6]} 27. Nxb6 {[%clk 0:02:21.6]}
27... Qxb6 {[%clk 0:01:24.5]} 28. Rb5 {[%clk 0:02:18.4]} 28... Qd6 {[%clk
0:01:20]} 29. Qf3 {[%clk 0:02:16.5]} 29... a6 {[%clk 0:01:08.9]} 30. Rd5 {[%clk
0:02:15.8]} 30... Rxd5 {[%clk 0:01:07.8]} 31. exd5 {[%clk 0:02:16.7]} 31... f5
{[%clk 0:01:08.3]} 32. Rd2 {[%clk 0:02:16.5]} 32... e4 {[%clk 0:01:06.9]} 33.
Qe3 {[%clk 0:02:15.7]} 33... Rd8 {[%clk 0:01:01.7]} 34. Kg2 {[%clk 0:02:15.5]}
34... Qe5 {[%clk 0:01:00.3]} 35. Qc5 {[%clk 0:02:09.2]} 35... e3 {[%clk
0:00:57.8]} 36. Re2 {[%clk 0:02:08.7]} 36... f4 {[%clk 0:00:57.7]} 37. gxf4
{[%clk 0:02:06.7]} 37... Qe4+ {[%clk 0:00:57.9]} 38. Kg3 {[%clk 0:02:05.2]}
38... Rxd5 {[%clk 0:00:43]} 39. Rxe3 {[%clk 0:02:04.6]} 39... Rxc5 {[%clk
0:00:29.3]} 40. Rxe4 {[%clk 0:02:04.5]} 40... Rc3+ {[%clk 0:00:29.6]} 41. Kg4
{[%clk 0:02:05.1]} 41... Rxb3 {[%clk 0:00:29.9]} 42. Re6 {[%clk 0:02:03.9]}
42... Rb4 {[%clk 0:00:13.8]} 43. a5 {[%clk 0:02:01.8]} 43... Rb5 {[%clk
0:00:14.1]} 44. Rxg6 {[%clk 0:02:01.5]} 44... Rxa5 {[%clk 0:00:14.2]} 45. h5
{[%clk 0:02:02]} 45... Ra1 {[%clk 0:00:13.9]} 46. h6 {[%clk 0:02:02.4]} 46...
Rh1 {[%clk 0:00:13.2]} 47. Kg5 {[%clk 0:02:02.6]} 47... a5 {[%clk 0:00:13.3]}
48. f5 {[%clk 0:01:55.8]} 48... a4 {[%clk 0:00:13.3]} 49. f6 {[%clk 0:01:56]}
49... a3 {[%clk 0:00:13.6]} 50. f7 {[%clk 0:01:56.5]} 50... Rf1 {[%clk
0:00:11.5]} 51. h7 {[%clk 0:01:56.4]} 51... a2 {[%clk 0:00:10.6]} 52. h8=Q+
{[%clk 0:01:56.4]} 52... Ka7 {[%clk 0:00:10.8]} 53. Qd4+ {[%clk 0:01:55.4]}
53... Kb8 {[%clk 0:00:06.2]} 54. Rg8+ {[%clk 0:01:55.1]} 54... Kc7 {[%clk
0:00:06.8]} 55. f8=Q {[%clk 0:01:55.4]} 1-0

[Event "Early-Titled-Tuesday-Blitz-May-07-2024"]
[Site "Chess.com"]
[Date "2024.05.07"]
[Round "1"]
[White "LikeWater"]
[Black "rikchessmx"]
[Result "1-0"]
[WhiteElo "2692"]
[BlackElo "2392"]
[TimeControl "180+1"]
[EndTime "8:06:23 PDT"]
[Termination "LikeWater won by checkmate"]

1. e4 {[%clk 0:03:00.9]} 1... c5 {[%clk 0:02:47.2]} 2. Nf3 {[%clk 0:03:00.5]}
2... e6 {[%clk 0:02:47.6]} 3. d4 {[%clk 0:03:00.2]} 3... cxd4 {[%clk 0:02:48.4]}
4. Nxd4 {[%clk 0:03:00.7]} 4... a6 {[%clk 0:02:49.1]} 5. g3 {[%clk 0:02:56.9]}
5... h5 {[%clk 0:02:47.1]} 6. Bg2 {[%clk 0:02:54.8]} 6... h4 {[%clk 0:02:47.1]}
7. O-O {[%clk 0:02:55.5]} 7... hxg3 {[%clk 0:02:46.5]} 8. hxg3 {[%clk
0:02:56.4]} 8... Bc5 {[%clk 0:02:45.4]} 9. Be3 {[%clk 0:02:46.6]} 9... Qc7
{[%clk 0:02:44.5]} 10. c4 {[%clk 0:02:43.4]} 10... Nf6 {[%clk 0:02:43.5]} 11.
Nc3 {[%clk 0:02:41]} 11... d6 {[%clk 0:02:43.3]} 12. Rc1 {[%clk 0:02:23.6]}
12... Nbd7 {[%clk 0:02:42.4]} 13. a3 {[%clk 0:02:15.8]} 13... Ba7 {[%clk
0:02:40.8]} 14. Ndb5 {[%clk 0:02:13.3]} 14... axb5 {[%clk 0:02:31.2]} 15. Nxb5
{[%clk 0:02:14.2]} 15... Qb8 {[%clk 0:02:31]} 16. Nxd6+ {[%clk 0:01:48.5]} 16...
Ke7 {[%clk 0:02:30.5]} 17. c5 {[%clk 0:01:48.9]} 17... Ne5 {[%clk 0:02:21.3]}
18. b4 {[%clk 0:01:18.9]} 18... Bd7 {[%clk 0:02:10.1]} 19. Bg5 {[%clk 0:01:19]}
19... Kf8 {[%clk 0:01:48.3]} 20. f4 {[%clk 0:00:56.9]} 20... Neg4 {[%clk
0:01:45.6]} 21. Qd4 {[%clk 0:00:40.2]} 21... Bc6 {[%clk 0:01:26.4]} 22. e5
{[%clk 0:00:34.6]} 22... Nd5 {[%clk 0:01:22]} 23. f5 {[%clk 0:00:26.9]} 23...
exf5 {[%clk 0:00:56.2]} 24. Bxd5 {[%clk 0:00:20.6]} 24... f6 {[%clk 0:00:48.5]}
25. Rxf5 {[%clk 0:00:18.3]} 25... Nxe5 {[%clk 0:00:33.9]} 26. Qxe5 {[%clk
0:00:13.6]} 26... Bd7 {[%clk 0:00:31.6]} 27. Rxf6+ {[%clk 0:00:13.4]} 27... gxf6
{[%clk 0:00:29.8]} 28. Qxf6# {[%clk 0:00:14.3]} 1-0

[Event "Early-Titled-Tuesday-Blitz-May-07-2024"]
[Site "Chess.com"]
[Date "2024.05.07"]
[Round "1"]
[White "InitiatingASC"]
[Black "wqws"]
[Result "0-1"]
[WhiteElo "2388"]
[BlackElo "2691"]
[TimeControl "180+1"]
[EndTime "8:06:25 PDT"]
[Termination "wqws won by resignation"]

1. d4 {[%clk 0:03:00.3]} 1... Nf6 {[%clk 0:02:59.6]} 2. c4 {[%clk 0:03:00.1]}
2... g6 {[%clk 0:02:59.7]} 3. Nc3 {[%clk 0:02:59.2]} 3... Bg7 {[%clk 0:02:59.8]}
4. e4 {[%clk 0:02:58.5]} 4... d6 {[%clk 0:02:59.3]} 5. Nf3 {[%clk 0:02:58]} 5...
O-O {[%clk 0:02:58.9]} 6. Be2 {[%clk 0:02:58.1]} 6... e5 {[%clk 0:02:58.6]} 7.
h3 {[%clk 0:02:57.2]} 7... Nc6 {[%clk 0:02:54]} 8. d5 {[%clk 0:02:57.3]} 8...
Ne7 {[%clk 0:02:47.9]} 9. Be3 {[%clk 0:02:56.8]} 9... Nh5 {[%clk 0:02:43.3]} 10.
g4 {[%clk 0:02:39.2]} 10... Nf4 {[%clk 0:02:43.2]} 11. Qd2 {[%clk 0:02:35.5]}
11... f5 {[%clk 0:02:36.2]} 12. gxf5 {[%clk 0:02:31.1]} 12... gxf5 {[%clk
0:02:35.7]} 13. O-O-O {[%clk 0:02:27.5]} 13... fxe4 {[%clk 0:02:28.3]} 14. Nxe4
{[%clk 0:02:07.5]} 14... Neg6 {[%clk 0:02:28.4]} 15. h4 {[%clk 0:01:59.5]} 15...
Bg4 {[%clk 0:02:26.1]} 16. Ng1 {[%clk 0:01:45.2]} 16... Nxe2+ {[%clk 0:02:19.7]}
17. Nxe2 {[%clk 0:01:44.3]} 17... Bf3 {[%clk 0:02:20]} 18. N2g3 {[%clk
0:01:39.8]} 18... Bxh1 {[%clk 0:02:18.1]} 19. Rxh1 {[%clk 0:01:39.2]} 19... Nf4
{[%clk 0:02:09.6]} 20. Ng5 {[%clk 0:01:31.2]} 20... Qe7 {[%clk 0:01:34.5]} 21.
Qc2 {[%clk 0:01:18.5]} 21... e4 {[%clk 0:01:08.6]} 22. Qxe4 {[%clk 0:00:59.3]}
22... Qxe4 {[%clk 0:01:07.3]} 23. N3xe4 {[%clk 0:01:00.1]} 23... Rae8 {[%clk
0:01:05.9]} 24. Ng3 {[%clk 0:00:20.6]} 24... h6 {[%clk 0:00:55.1]} 25. N5e4
{[%clk 0:00:18.7]} 25... Nd3+ {[%clk 0:00:50.2]} 26. Kc2 {[%clk 0:00:17.5]}
26... Nxb2 {[%clk 0:00:50.1]} 27. Rg1 {[%clk 0:00:18.1]} 27... Nxc4 {[%clk
0:00:48.4]} 28. Bxh6 {[%clk 0:00:12.3]} 28... Bxh6 {[%clk 0:00:46]} 29. Nf5+
{[%clk 0:00:12.8]} 29... Kh7 {[%clk 0:00:44]} 30. Nxh6 {[%clk 0:00:11.2]} 30...
Rxe4 {[%clk 0:00:42.8]} 0-1

[Event "Early-Titled-Tuesday-Blitz-May-07-2024"]
[Site "Chess.com"]
[Date "2024.05.07"]
[Round "1"]
[White "mary-sanna"]
[Black "VacheH009"]
[Result "0-1"]
[WhiteElo "2228"]
[BlackElo "2585"]
[TimeControl "180+1"]
[EndTime "8:06:26 PDT"]
[Termination "VacheH009 won on time"]

1. d4 {[%clk 0:02:59.4]} 1... Nf6 {[%clk 0:02:55.9]} 2. Nc3 {[%clk 0:02:57.8]}
2... d5 {[%clk 0:02:55.2]} 3. Bf4 {[%clk 0:02:56.2]} 3... a6 {[%clk 0:02:52.7]}
4. e3 {[%clk 0:02:52.5]} 4... e6 {[%clk 0:02:52.4]} 5. a3 {[%clk 0:02:47.3]}
5... Bd6 {[%clk 0:02:50.7]} 6. Nf3 {[%clk 0:02:42.2]} 6... Bxf4 {[%clk
0:02:43.9]} 7. exf4 {[%clk 0:02:43.1]} 7... Qd6 {[%clk 0:02:44.1]} 8. Ne5 {[%clk
0:02:35.2]} 8... O-O {[%clk 0:02:39.2]} 9. Bd3 {[%clk 0:02:22.3]} 9... c5 {[%clk
0:02:38.2]} 10. dxc5 {[%clk 0:02:18.4]} 10... Qxc5 {[%clk 0:02:39.1]} 11. O-O
{[%clk 0:02:18.7]} 11... b5 {[%clk 0:02:33.5]} 12. Qe2 {[%clk 0:01:55.5]} 12...
Nc6 {[%clk 0:02:24.5]} 13. Rad1 {[%clk 0:01:31.9]} 13... Bb7 {[%clk 0:02:10]}
14. Rfe1 {[%clk 0:01:24.1]} 14... Rad8 {[%clk 0:01:46.6]} 15. f5 {[%clk
0:01:04.1]} 15... d4 {[%clk 0:01:42.1]} 16. Nxc6 {[%clk 0:00:44.2]} 16... Qxc6
{[%clk 0:01:40]} 17. Ne4 {[%clk 0:00:37.3]} 17... exf5 {[%clk 0:01:35]} 18.
Nxf6+ {[%clk 0:00:36.3]} 18... Qxf6 {[%clk 0:01:35.9]} 19. Qe7 {[%clk
0:00:19.9]} 19... Qxe7 {[%clk 0:01:35.8]} 20. Rxe7 {[%clk 0:00:19.5]} 20... Bc8
{[%clk 0:01:36.7]} 21. Rde1 {[%clk 0:00:18.6]} 21... Be6 {[%clk 0:01:34.1]} 22.
Ra7 {[%clk 0:00:17.8]} 22... Rd6 {[%clk 0:01:33.8]} 23. g3 {[%clk 0:00:16.4]}
23... g6 {[%clk 0:01:32.7]} 24. Bf1 {[%clk 0:00:15.8]} 24... Rc8 {[%clk
0:01:32.1]} 25. Re2 {[%clk 0:00:14.5]} 25... Rdc6 {[%clk 0:01:19]} 26. Rd2
{[%clk 0:00:11.1]} 26... Rxc2 {[%clk 0:01:10.7]} 27. Rxd4 {[%clk 0:00:03]} 27...
Rxb2 {[%clk 0:00:58.8]} 28. Rxa6 {[%clk 0:00:02.6]} 28... Rc1 {[%clk 0:00:58]}
29. Kg2 {[%clk 0:00:01.7]} 29... Rcc2 {[%clk 0:00:54.6]} 0-1

[Event "Early-Titled-Tuesday-Blitz-May-07-2024"]
[Site "Chess.com"]
[Date "2024.05.07"]
[Round "1"]
[White "ATM622"]
[Black "severomorskij"]
[Result "0-1"]
[WhiteElo "2488"]
[BlackElo "2877"]
[TimeControl "180+1"]
[EndTime "8:06:29 PDT"]
[Termination "severomorskij won by resignation"]

1. d4 {[%clk 0:03:00.9]} 1... Nf6 {[%clk 0:02:59.5]} 2. c4 {[%clk 0:02:59.6]}
2... c5 {[%clk 0:02:56.6]} 3. d5 {[%clk 0:02:58]} 3... b5 {[%clk 0:02:56.8]} 4.
cxb5 {[%clk 0:02:56.6]} 4... a6 {[%clk 0:02:56.9]} 5. e3 {[%clk 0:02:57]} 5...
g6 {[%clk 0:02:54.4]} 6. Nf3 {[%clk 0:02:56.3]} 6... Bg7 {[%clk 0:02:54.7]} 7.
Nc3 {[%clk 0:02:54.7]} 7... O-O {[%clk 0:02:54.8]} 8. a4 {[%clk 0:02:50.6]} 8...
e6 {[%clk 0:02:53.8]} 9. Bc4 {[%clk 0:02:44.4]} 9... axb5 {[%clk 0:02:49.5]} 10.
Bxb5 {[%clk 0:02:41.7]} 10... exd5 {[%clk 0:02:35.1]} 11. Nxd5 {[%clk
0:02:36.5]} 11... Bb7 {[%clk 0:02:25.5]} 12. Nxf6+ {[%clk 0:02:35.2]} 12... Qxf6
{[%clk 0:02:24.5]} 13. O-O {[%clk 0:02:33]} 13... d5 {[%clk 0:01:59.2]} 14. Rb1
{[%clk 0:02:13.2]} 14... Na6 {[%clk 0:01:55.4]} 15. b3 {[%clk 0:02:12.1]} 15...
Rfd8 {[%clk 0:01:39.2]} 16. Bb2 {[%clk 0:02:11.5]} 16... d4 {[%clk 0:01:39.2]}
17. exd4 {[%clk 0:02:07.5]} 17... cxd4 {[%clk 0:01:39.5]} 18. Nxd4 {[%clk
0:01:52.5]} 18... Qb6 {[%clk 0:01:29]} 19. a5 {[%clk 0:01:21.9]} 19... Qa7
{[%clk 0:01:18.5]} 20. Qg4 {[%clk 0:00:52.2]} 20... Bxd4 {[%clk 0:01:17.5]} 21.
Ba3 {[%clk 0:00:49.2]} 21... Nc5 {[%clk 0:01:02.2]} 22. b4 {[%clk 0:00:41]}
22... Ne4 {[%clk 0:00:58.7]} 23. Qh4 {[%clk 0:00:26.4]} 23... Nd2 {[%clk
0:00:40.6]} 24. Qe7 {[%clk 0:00:13]} 24... Nxb1 {[%clk 0:00:33.5]} 25. Rxb1
{[%clk 0:00:12.3]} 25... Bxf2+ {[%clk 0:00:32.8]} 26. Kh1 {[%clk 0:00:11.7]}
26... Bxg2+ {[%clk 0:00:32.9]} 0-1

[Event "Early-Titled-Tuesday-Blitz-May-07-2024"]
[Site "Chess.com"]
[Date "2024.05.07"]
[Round "1"]
[White "Mischuk_D"]
[Black "UK_23"]
[Result "1-0"]
[WhiteElo "2805"]
[BlackElo "2453"]
[TimeControl "180+1"]
[EndTime "8:06:30 PDT"]
[Termination "Mischuk_D won by resignation"]

1. d4 {[%clk 0:03:00.9]} 1... Nf6 {[%clk 0:02:57.6]} 2. c4 {[%clk 0:03:00.8]}
2... c5 {[%clk 0:02:56.1]} 3. d5 {[%clk 0:03:00.5]} 3... e6 {[%clk 0:02:55.7]}
4. Nc3 {[%clk 0:03:00]} 4... exd5 {[%clk 0:02:56.1]} 5. cxd5 {[%clk 0:03:00.9]}
5... d6 {[%clk 0:02:56.8]} 6. Nf3 {[%clk 0:03:00.5]} 6... g6 {[%clk 0:02:57.3]}
7. Bf4 {[%clk 0:03:00.7]} 7... Bg7 {[%clk 0:02:56.2]} 8. h3 {[%clk 0:03:00.2]}
8... O-O {[%clk 0:02:56.1]} 9. e3 {[%clk 0:03:00.5]} 9... a6 {[%clk 0:02:46.5]}
10. a4 {[%clk 0:03:00]} 10... Re8 {[%clk 0:02:43]} 11. Bd3 {[%clk 0:02:57.8]}
11... Qc7 {[%clk 0:02:35.7]} 12. Nd2 {[%clk 0:02:54.7]} 12... Nbd7 {[%clk
0:02:33.4]} 13. Nc4 {[%clk 0:02:54.1]} 13... Ne5 {[%clk 0:02:31.9]} 14. Bxe5
{[%clk 0:02:54.2]} 14... dxe5 {[%clk 0:02:32.2]} 15. a5 {[%clk 0:02:42.7]} 15...
e4 {[%clk 0:02:30]} 16. Be2 {[%clk 0:02:26.7]} 16... Bf5 {[%clk 0:02:29.5]} 17.
d6 {[%clk 0:02:25.2]} 17... Qc6 {[%clk 0:02:27.3]} 18. Qa4 {[%clk 0:02:11.9]}
18... Qxa4 {[%clk 0:02:13.9]} 19. Nxa4 {[%clk 0:02:12.8]} 19... Nd5 {[%clk
0:02:12.8]} 20. Rd1 {[%clk 0:02:09.1]} 20... Nb4 {[%clk 0:02:09.6]} 21. Nxc5
{[%clk 0:01:53.7]} 21... Rec8 {[%clk 0:01:38.6]} 22. d7 {[%clk 0:01:44]} 22...
Rxc5 {[%clk 0:01:30.3]} 23. d8=Q+ {[%clk 0:01:43.7]} 23... Rxd8 {[%clk 0:01:31]}
24. Rxd8+ {[%clk 0:01:44.1]} 24... Bf8 {[%clk 0:01:31.9]} 25. O-O {[%clk
0:01:38.7]} 25... Kg7 {[%clk 0:01:29.3]} 26. b3 {[%clk 0:01:33.2]} 26... Be7
{[%clk 0:01:26]} 27. Re8 {[%clk 0:01:24.8]} 27... Bf6 {[%clk 0:01:19.7]} 28. Rd1
{[%clk 0:01:24]} 28... Be6 {[%clk 0:01:14.5]} 29. Rd6 {[%clk 0:01:13.8]} 29...
Na2 {[%clk 0:01:11.4]} 30. Rdxe6 {[%clk 0:01:08.5]} 30... fxe6 {[%clk
0:01:11.3]} 31. Rxe6 {[%clk 0:01:09.2]} 31... Rb5 {[%clk 0:01:04.3]} 32. Bd1
{[%clk 0:01:02.4]} 32... Nc3 {[%clk 0:01:01.9]} 33. Bc2 {[%clk 0:01:02.5]} 33...
Kf7 {[%clk 0:00:55.4]} 34. Rd6 {[%clk 0:01:02.7]} 34... Be7 {[%clk 0:00:52.6]}
35. Rd2 {[%clk 0:00:54.2]} 35... Bb4 {[%clk 0:00:51.7]} 36. Rd7+ {[%clk
0:00:52.8]} 36... Kg8 {[%clk 0:00:43.6]} 37. g3 {[%clk 0:00:53.2]} 37... Bxa5
{[%clk 0:00:36]} 38. Nxa5 {[%clk 0:00:54.1]} 38... Rxa5 {[%clk 0:00:36.9]} 39.
Rc7 {[%clk 0:00:53]} 39... Nd5 {[%clk 0:00:25.8]} 40. Rxb7 {[%clk 0:00:51.9]}
40... Nf6 {[%clk 0:00:24.5]} 41. b4 {[%clk 0:00:51.6]} 41... Ra2 {[%clk
0:00:24.5]} 42. Bb3+ {[%clk 0:00:51.5]} 1-0

[Event "Early-Titled-Tuesday-Blitz-May-07-2024"]
[Site "Chess.com"]
[Date "2024.05.07"]
[Round "1"]
[White "Antosha_Chekhonte"]
[Black "martinmena"]
[Result "1-0"]
[WhiteElo "2561"]
[BlackElo "2108"]
[TimeControl "180+1"]
[EndTime "8:06:35 PDT"]
[Termination "Antosha_Chekhonte won on time"]

1. e4 {[%clk 0:02:59.4]} 1... c6 {[%clk 0:02:54.5]} 2. d4 {[%clk 0:02:59.1]}
2... d5 {[%clk 0:02:55.4]} 3. e5 {[%clk 0:02:59]} 3... Bf5 {[%clk 0:02:51.1]} 4.
h4 {[%clk 0:02:58.9]} 4... h5 {[%clk 0:02:48]} 5. Bd3 {[%clk 0:02:58.7]} 5...
Bxd3 {[%clk 0:02:46.1]} 6. Qxd3 {[%clk 0:02:59.6]} 6... e6 {[%clk 0:02:44.8]} 7.
Bg5 {[%clk 0:02:59.2]} 7... Qa5+ {[%clk 0:02:42.7]} 8. Nd2 {[%clk 0:02:58.7]}
8... Qa6 {[%clk 0:02:42.1]} 9. c4 {[%clk 0:02:54]} 9... Bb4 {[%clk 0:02:29.1]}
10. b3 {[%clk 0:02:50.8]} 10... Ne7 {[%clk 0:02:25.7]} 11. Ne2 {[%clk
0:02:49.1]} 11... Nf5 {[%clk 0:02:21.6]} 12. O-O {[%clk 0:02:46.1]} 12... Nd7
{[%clk 0:02:18.7]} 13. Nf3 {[%clk 0:02:38.5]} 13... Be7 {[%clk 0:02:14.8]} 14.
Ng3 {[%clk 0:02:37.6]} 14... g6 {[%clk 0:02:04.8]} 15. a4 {[%clk 0:02:31.4]}
15... Bxg5 {[%clk 0:01:53]} 16. Nxf5 {[%clk 0:02:25.4]} 16... gxf5 {[%clk
0:01:47.1]} 17. Nxg5 {[%clk 0:02:25.3]} 17... c5 {[%clk 0:01:27]} 18. Rfc1
{[%clk 0:02:09.8]} 18... b6 {[%clk 0:01:08.3]} 19. Qf3 {[%clk 0:01:29.3]} 19...
Qb7 {[%clk 0:00:48.9]} 20. Rd1 {[%clk 0:01:29.3]} 20... cxd4 {[%clk 0:00:43.7]}
21. cxd5 {[%clk 0:01:28.9]} 21... Qxd5 {[%clk 0:00:30.3]} 22. Qxd5 {[%clk
0:01:28.2]} 22... exd5 {[%clk 0:00:31.2]} 23. Rxd4 {[%clk 0:01:26.8]} 23... Nxe5
{[%clk 0:00:20.2]} 24. Rxd5 {[%clk 0:01:25.6]} 24... f6 {[%clk 0:00:17.8]} 25.
f4 {[%clk 0:01:11.7]} 25... Nf7 {[%clk 0:00:09.8]} 26. Re1+ {[%clk 0:01:00.6]}
26... Kf8 {[%clk 0:00:09.6]} 27. Ne6+ {[%clk 0:00:55.8]} 27... Kg8 {[%clk
0:00:10]} 28. Re3 {[%clk 0:00:55.9]} 28... Kh7 {[%clk 0:00:08.6]} 29. Rd7 {[%clk
0:00:55.1]} 29... Rhf8 {[%clk 0:00:00.8]} 30. Rg3 {[%clk 0:00:44.7]} 1-0

[Event "Early-Titled-Tuesday-Blitz-May-07-2024"]
[Site "Chess.com"]
[Date "2024.05.07"]
[Round "1"]
[White "SchmakAttack"]
[Black "Jojo_898"]
[Result "1-0"]
[WhiteElo "2772"]
[BlackElo "2439"]
[TimeControl "180+1"]
[EndTime "8:06:38 PDT"]
[Termination "SchmakAttack won by resignation"]

1. Nf3 {[%clk 0:03:00.9]} 1... d6 {[%clk 0:02:59.3]} 2. d4 {[%clk 0:02:58.1]}
2... Nf6 {[%clk 0:02:59.3]} 3. g3 {[%clk 0:02:57.2]} 3... g6 {[%clk 0:02:57.4]}
4. Bg2 {[%clk 0:02:57.7]} 4... Bg7 {[%clk 0:02:58.1]} 5. O-O {[%clk 0:02:58.3]}
5... O-O {[%clk 0:02:58.7]} 6. Nc3 {[%clk 0:02:58.9]} 6... Nbd7 {[%clk
0:02:58.6]} 7. e4 {[%clk 0:02:58.1]} 7... e5 {[%clk 0:02:58]} 8. h3 {[%clk
0:02:58.4]} 8... exd4 {[%clk 0:02:48.8]} 9. Nxd4 {[%clk 0:02:59.3]} 9... Nc5
{[%clk 0:02:49.2]} 10. Bf4 {[%clk 0:02:31.1]} 10... Re8 {[%clk 0:02:43.3]} 11.
Re1 {[%clk 0:02:31.2]} 11... Ne6 {[%clk 0:02:29.6]} 12. Be3 {[%clk 0:02:31.5]}
12... Nc5 {[%clk 0:02:22.6]} 13. f3 {[%clk 0:02:24.6]} 13... Bd7 {[%clk
0:02:01.2]} 14. Qd2 {[%clk 0:02:23.3]} 14... Qc8 {[%clk 0:01:52.1]} 15. Kh2
{[%clk 0:02:19.3]} 15... Nh5 {[%clk 0:01:52.1]} 16. Rad1 {[%clk 0:02:07.1]}
16... Be5 {[%clk 0:01:51.7]} 17. f4 {[%clk 0:02:04.9]} 17... Bg7 {[%clk
0:01:51.5]} 18. Bf2 {[%clk 0:01:52.6]} 18... Nf6 {[%clk 0:01:32.2]} 19. e5
{[%clk 0:01:44.3]} 19... dxe5 {[%clk 0:01:25.2]} 20. fxe5 {[%clk 0:01:45.2]}
20... Nh5 {[%clk 0:01:25.6]} 21. Nf3 {[%clk 0:01:39.4]} 21... Bf8 {[%clk
0:01:20.7]} 22. Bxc5 {[%clk 0:01:14.8]} 22... Bxc5 {[%clk 0:01:20.1]} 23. Qxd7
{[%clk 0:01:15.5]} 23... Bf2 {[%clk 0:01:20.1]} 24. Rf1 {[%clk 0:01:10.2]} 24...
Bxg3+ {[%clk 0:01:19.1]} 25. Kg1 {[%clk 0:01:10.1]} 25... Nf4 {[%clk 0:00:50.2]}
26. Ne4 {[%clk 0:00:32.9]} 26... Ne2+ {[%clk 0:00:47.1]} 27. Kh1 {[%clk
0:00:33.6]} 27... Qxd7 {[%clk 0:00:39.4]} 28. Rxd7 {[%clk 0:00:34.5]} 28... Bxe5
{[%clk 0:00:39.6]} 29. Nxe5 {[%clk 0:00:34.4]} 29... Rxe5 {[%clk 0:00:39.6]} 30.
Rfxf7 {[%clk 0:00:34.5]} 30... Rxe4 {[%clk 0:00:37.4]} 31. Rg7+ {[%clk
0:00:34.6]} 31... Kf8 {[%clk 0:00:36]} 32. Rdf7+ {[%clk 0:00:32.7]} 32... Ke8
{[%clk 0:00:36.3]} 33. Bxe4 {[%clk 0:00:30.1]} 33... Ng3+ {[%clk 0:00:36.6]} 34.
Kg2 {[%clk 0:00:30.6]} 34... Nxe4 {[%clk 0:00:37.5]} 35. Re7+ {[%clk 0:00:31.2]}
35... Kf8 {[%clk 0:00:37.7]} 36. Rgf7+ {[%clk 0:00:29.3]} 36... Kg8 {[%clk
0:00:37.5]} 37. Rg7+ {[%clk 0:00:28.9]} 37... Kf8 {[%clk 0:00:37.9]} 38. Rxh7
{[%clk 0:00:26.1]} 38... Nf6 {[%clk 0:00:36.2]} 39. Rhf7+ {[%clk 0:00:25.6]}
39... Kg8 {[%clk 0:00:36.2]} 40. Rxf6 {[%clk 0:00:26.4]} 1-0